bitfinex-derivatives/quotes_SOLF0:USTF0_20260302
["timestamp","ask_amount","ask_price","bid_price","bid_amount"]
[1772482586292,3.86998793,87.459,87.393,10.296]
[1772482586596,10.292,87.431,87.374,10.299]
[1772482586796,3.86998793,87.439,87.374,10.299]
[1772482586994,3.86998793,87.439,87.371,3.81290717]
[1772482587390,3.86998793,87.439,87.35,9.02251454]
[1772482587593,3.86998793,87.419,87.349,3.81290717]
[1772482588186,9.02251454,87.44,87.37,3.81290717]
[1772482588397,9.02251454,87.46,87.371,3.81290717]
[1772482588793,10.29,87.452,87.401,10.295]
[1772482588989,3.86998793,87.465,87.371,3.81290717]
[1772482589192,3.86998793,87.465,87.399,3.81290717]
[1772482589391,3.86998793,87.459,87.375,3.81290717]
[1772482590095,3.86998793,87.439,87.375,3.81290717]
[1772482590487,10.292,87.43,87.369,10.299]
[1772482590692,3.86998793,87.439,87.369,10.299]
[1772482590995,3.86998793,87.419,87.345,3.81290717]
[1772482591299,3.86998793,87.415,87.345,3.81290717]
[1772482591487,9.02251454,87.42,87.345,3.81290717]
[1772482591689,12.89250247,87.42,87.345,3.81290717]
[1772482591999,10.296,87.4,87.347,10.302]
[1772482592297,3.86998793,87.399,87.323,3.81290717]
[1772482592499,8.98738097,87.39,87.323,3.81290717]
[1772482592793,8.98738097,87.39,87.338,10.303]
[1772482592996,3.86998793,87.399,87.323,3.81290717]
[1772482593798,3.86998793,87.399,87.344,10.302]
[1772482594592,10.293,87.424,87.364,10.3]
[1772482594799,3.86998793,87.427,87.364,10.3]
[1772482594995,3.86998793,87.427,87.344,3.81290717]
[1772482595198,12.8573689,87.45,87.344,3.81290717]
[1772482595398,3.86998793,87.449,87.344,3.81290717]
[1772482595903,8.98738097,87.48,87.344,3.81290717]
[1772482595904,3.86998793,87.429,87.344,3.81290717]
[1772482596205,3.86998793,87.409,87.344,3.81290717]
[1772482596405,3.86998793,87.409,87.321,3.81290717]
[1772482596605,3.86998793,87.409,87.344,10.302]
[1772482596805,8.98738097,87.39,87.321,3.81290717]
[1772482597105,8.98738097,87.39,87.341,10.302]
[1772482597304,8.98738097,87.39,87.321,3.81290717]
[1772482597606,3.86998793,87.438,87.321,3.81290717]
[1772482597901,3.86998793,87.399,87.348,10.302]
[1772482598105,3.86998793,87.389,87.321,3.81290717]
[1772482598499,3.86998793,87.387,87.331,10.304]
[1772482598701,3.86998793,87.369,87.28,3.81290717]
[1772482599403,3.86998793,87.349,87.28,3.81290717]
[1772482599906,3.86998793,87.369,87.28,3.81290717]
[1772482600307,3.86998793,87.369,87.281,3.81290717]
[1772482600899,3.86998793,87.367,87.307,10.307]
[1772482601102,3.86998793,87.367,87.281,3.81290717]
[1772482601299,3.86998793,87.349,87.281,3.81290717]
[1772482601602,3.86998793,87.379,87.281,3.81290717]
[1772482602205,10.3,87.363,87.313,10.306]
[1772482602509,3.86998793,87.379,87.281,3.81290717]
[1772482602705,3.86998793,87.378,87.305,3.81290717]
[1772482603206,3.86998793,87.378,87.28,8.98738097]
[1772482603207,3.86998793,87.349,87.28,3.81290717]
[1772482603902,10.302,87.348,87.298,10.308]
[1772482604302,3.86998793,87.349,87.28,3.81290717]
[1772482604506,3.86998793,87.369,87.281,3.81290717]
[1772482604698,3.86998793,87.349,87.261,3.81290717]
[1772482605598,14.17198793,87.347,87.294,10.308]
[1772482606403,10.3,87.366,87.313,10.306]
[1772482606707,3.86998793,87.365,87.281,3.81290717]
[1772482607500,3.55759571,87.385,87.284,3.73126741]
[1772482607706,3.55759571,87.385,87.312,3.73126741]
[1772482608101,10.296,87.393,87.312,3.73126741]
[1772482608307,10.296,87.393,87.341,10.303]
[1772482608709,8.98738097,87.4,87.321,3.73126741]
[1772482609009,8.98738097,87.4,87.352,10.301]
[1772482610007,8.98738097,87.4,87.343,10.302]
[1772482610204,8.98738097,87.4,87.321,3.73126741]
[1772482610205,3.55759571,87.409,87.321,3.73126741]
[1772482610711,8.98738097,87.42,87.344,3.73126741]
[1772482610910,3.55759571,87.419,87.344,3.73126741]
[1772482612513,10.49943262,87.517,87.381,3.73126741]
[1772482612811,8.98738097,87.45,87.381,3.73126741]
[1772482613209,10.29,87.449,87.387,10.297]
[1772482613515,8.98738097,87.45,87.381,3.73126741]
[1772482613911,8.98738097,87.47,87.405,10.295]
[1772482614109,8.98738097,87.47,87.381,3.73126741]
[1772482614914,3.55759571,87.457,87.397,10.296]
[1772482615109,3.55759571,87.457,87.381,3.73126741]
[1772482616812,3.55759571,87.457,87.36,8.98738097]
[1772482616813,8.98738097,87.47,87.4,3.73126741]
[1772482617011,3.55759571,87.469,87.4,3.73126741]
[1772482617810,3.55759571,87.467,87.4,3.73126741]
[1772482618006,3.55759571,87.467,87.38,12.71864838]
[1772482618210,3.55759571,87.467,87.38,3.73126741]
[1772482618410,3.55759571,87.448,87.39,10.297]
[1772482619108,3.55759571,87.448,87.38,3.73126741]
[1772482619109,3.55759571,87.445,87.38,3.73126741]
[1772482619615,3.55759571,87.465,87.381,3.73126741]
[1772482619811,13.84559571,87.464,87.381,3.73126741]
[1772482620017,3.55759571,87.463,87.381,3.73126741]
[1772482620415,3.55759571,87.484,87.403,3.73126741]
[1772482620605,3.55759571,87.489,87.385,10.3797846]
[1772482620810,3.55759571,87.465,87.404,10.295]
[1772482621209,3.55759571,87.465,87.386,3.73126741]
[1772482622021,10.289,87.458,87.396,10.296]
[1772482623222,10.29,87.449,87.396,10.296]
[1772482623414,3.55759571,87.465,87.404,10.295]
[1772482624022,3.55759571,87.485,87.405,3.73126741]
[1772482624321,8.98738097,87.49,87.405,3.73126741]
[1772482624522,3.55759571,87.489,87.43,10.292]
[1772482624914,10.286,87.481,87.405,3.73126741]
[1772482625317,3.55759571,87.489,87.421,10.293]
[1772482625521,3.55759571,87.489,87.405,3.73126741]
[1772482626116,3.55759571,87.509,87.425,3.73126741]
[1772482626514,132.98738097,87.53,87.483,10.286]
[1772482626711,8.98738097,87.53,87.467,3.73126741]
[1772482627116,3.55759571,87.529,87.467,3.73126741]
[1772482627825,12.54497668,87.55,87.49,10.285]
[1772482628020,3.55759571,87.549,87.467,3.73126741]
[1772482629528,10.278,87.547,87.5,10.284]
[1772482629726,10.278,87.547,87.486,3.73126741]
[1772482630537,3.55759571,87.569,87.486,3.73126741]
[1772482630733,3.55759571,87.549,87.465,3.73126741]
[1772482630935,10.28,87.532,87.47,10.287]
[1772482631139,3.55759571,87.531,87.47,10.287]
[1772482631433,3.55759571,87.529,87.465,3.73126741]
[1772482631736,8.98738097,87.53,87.44,8.98738097]
[1772482631737,3.55759571,87.525,87.441,3.73126741]
[1772482632646,3.55759571,87.509,87.441,3.73126741]
[1772482634231,8.98738097,87.5,87.441,3.73126741]
[1772482635337,3.55759571,87.509,87.441,3.73126741]
[1772482636630,10.281,87.525,87.441,3.73126741]
[1772482636834,3.73954451,87.529,87.441,3.73126741]
[1772482637438,8.98738097,87.53,87.459,3.93798831]
[1772482637642,8.98738097,87.53,87.446,20.581]
[1772482637643,8.98738097,87.55,87.461,3.93798831]
[1772482637947,10.276,87.565,87.494,3.93798831]
[1772482638140,3.85831367,87.569,87.494,3.93798831]
[1772482638540,10.276,87.568,87.494,3.93798831]
[1772482639044,3.85831367,87.569,87.494,3.93798831]
[1772482639246,10.277,87.56,87.507,10.283]
[1772482639637,3.85831367,87.552,87.494,3.93798831]
[1772482639837,3.85831367,87.549,87.461,3.93798831]
[1772482640443,8.98738097,87.53,87.461,3.93798831]
[1772482640846,8.98738097,87.53,87.483,10.286]
[1772482641047,8.98738097,87.53,87.461,3.93798831]
[1772482641548,3.85831367,87.549,87.461,3.93798831]
[1772482641748,3.85831367,87.529,87.461,3.93798831]
[1772482642249,3.85831367,87.529,87.474,10.287]
[1772482642750,10.282,87.52,87.462,10.288]
[1772482643148,3.85831367,87.529,87.462,10.288]
[1772482643546,3.85831367,87.529,87.452,10.289]
[1772482643739,8.98738097,87.51,87.452,10.289]
[1772482643946,3.85831367,87.509,87.452,10.289]
[1772482644145,3.85831367,87.509,87.44,3.93798831]
[1772482645052,10.282,87.512,87.44,3.93798831]
[1772482645053,3.85831367,87.529,87.476,10.287]
[1772482645348,3.85831367,87.529,87.46,3.93798831]
[1772482646051,3.85831367,87.529,87.492,10.285]
[1772482646443,10.279,87.54,87.492,10.285]
[1772482647253,10.28,87.532,87.46,3.93798831]
[1772482647454,3.85831367,87.549,87.46,3.93798831]
[1772482648250,10.28,87.533,87.48,10.286]
[1772482648850,10.28,87.533,87.472,10.287]
[1772482649253,3.85831367,87.549,87.44,8.98738097]
[1772482649254,3.85831367,87.518,87.454,10.289]
[1772482649451,3.85831367,87.509,87.44,3.93798831]
[1772482651355,10.284,87.501,87.45,10.29]
[1772482652547,3.85831367,87.509,87.44,3.93798831]
[1772482652548,10.285,87.494,87.441,10.291]
[1772482652753,3.85831367,87.509,87.441,10.291]
[1772482653157,10.285,87.494,87.44,3.93798831]
[1772482653550,3.85831367,87.509,87.42,3.93798831]
[1772482653751,3.85831367,87.489,87.42,3.93798831]
[1772482653952,3.85831367,87.489,87.431,10.292]
[1772482654151,3.85831367,87.489,87.42,3.93798831]
[1772482654553,10.45868543,87.553,87.42,3.93798831]
[1772482654554,12.82072553,87.51,87.42,3.93798831]
[1772482654759,10.285,87.494,87.42,3.93798831]
[1772482655154,10.285,87.494,87.438,3.93798831]
[1772482655754,10.283,87.505,87.451,10.29]
[1772482655954,10.283,87.505,87.438,3.93798831]
[1772482657059,12.82072553,87.51,87.464,10.288]
[1772482657756,10.281,87.523,87.471,10.287]
[1772482658058,12.82072553,87.53,87.456,3.93798831]
[1772482658260,10.279,87.539,87.456,3.93798831]
[1772482658656,10.279,87.539,87.49,10.285]
[1772482658856,10.28,87.532,87.49,10.285]
[1772482659464,10.281,87.522,87.481,10.286]
[1772482659763,3.85831367,87.529,87.481,10.286]
[1772482660161,3.85831367,87.529,87.456,3.93798831]
[1772482660363,8.96241186,87.53,87.456,3.93798831]
[1772482660864,8.96241186,87.53,87.485,10.286]
[1772482661558,10.281,87.526,87.485,10.286]
[1772482661759,10.281,87.526,87.456,3.93798831]
[1772482661760,3.85831367,87.525,87.456,3.93798831]
[1772482662258,10.282,87.517,87.47,10.287]
[1772482662453,3.85831367,87.517,87.456,3.93798831]
[1772482663062,3.85831367,87.517,87.47,10.287]
[1772482663361,3.85831367,87.537,87.458,3.93798831]
[1772482664264,10.28,87.534,87.458,3.93798831]
[1772482664460,10.28,87.534,87.466,3.93798831]
[1772482664766,3.85831367,87.555,87.479,3.93798831]
[1772482665365,3.85831367,87.555,87.484,3.93798831]
[1772482666065,8.96241186,87.57,87.51,10.283]
[1772482666464,10.276,87.565,87.51,10.283]
[1772482666667,3.85831367,87.569,87.51,10.283]
[1772482666965,10.279,87.546,87.481,3.93798831]
[1772482667166,1.98865666,87.572,87.481,3.93798831]
[1772482667167,12.82072553,87.57,87.481,3.93798831]
[1772482667360,3.59840218,87.569,87.507,10.283]
[1772482667560,10.276,87.564,87.49,3.90900412]
[1772482668268,3.59840218,87.563,87.49,3.90900412]
[1772482668670,3.59840218,87.563,87.492,3.90900412]
[1772482668963,10.277,87.561,87.511,10.283]
[1772482669470,3.59840218,87.563,87.498,3.90900412]
[1772482669670,3.59840218,87.563,87.517,10.282]
[1772482670165,3.59840218,87.563,87.489,10.4135102]
[1772482670371,3.59840218,87.549,87.479,10.4135102]
[1772482670571,3.59840218,87.549,87.478,3.90900412]
[1772482671670,8.96241186,87.53,87.475,3.90900412]
[1772482671870,8.96241186,87.53,87.476,3.90900412]
[1772482672070,3.59840218,87.548,87.476,3.90900412]
[1772482672673,10.279,87.54,87.498,10.284]
[1772482672868,10.279,87.54,87.476,3.90900412]
[1772482673169,3.59840218,87.548,87.497,10.284]
[1772482673366,3.59840218,87.548,87.476,3.90900412]
[1772482673570,3.59840218,87.548,87.481,3.90900412]
[1772482673771,3.59840218,87.548,87.484,3.90900412]
[1772482674374,13.87640218,87.548,87.503,10.283]
[1772482674670,13.87640218,87.548,87.484,3.90900412]
[1772482674671,3.59840218,87.548,87.484,3.90900412]
[1772482674874,10.278,87.547,87.495,10.284]
[1772482675875,10.277,87.556,87.508,10.283]
[1772482676574,10.277,87.563,87.514,10.282]
[1772482676971,10.277,87.563,87.475,21.19264579]
[1772482676972,495.17860661,87.59,87.516,3.90900412]
[1772482677171,498.77700879,87.59,87.516,3.90900412]
[1772482677373,3.59840218,87.589,87.516,3.90900412]
[1772482678381,3.59840218,87.569,87.496,3.90900412]
[1772482678980,10.277,87.562,87.512,10.282]
[1772482679275,10.277,87.562,87.519,10.282]
[1772482679473,3.59840218,87.569,87.501,3.90900412]
[1772482679674,10.276,87.57,87.501,3.90900412]
[1772482680281,495.17860661,87.59,87.518,3.90900412]
[1772482680578,486.21619475,87.59,87.524,3.90900412]
[1772482680775,3.59840218,87.589,87.524,3.90900412]
[1772482681475,3.59840218,87.569,87.503,3.90900412]
[1772482681675,1.98833851,87.587,87.503,3.90900412]
[1772482681883,495.17860661,87.59,87.509,3.90900412]
[1772482682076,3.59840218,87.589,87.509,3.90900412]
[1772482682472,10.275,87.573,87.524,10.281]
[1772482682672,486.21619475,87.59,87.525,3.90900412]
[1772482682878,8.96241186,87.63,87.541,3.90900412]
[1772482683082,0.00092283,87.622,87.568,3.90900412]
[1772482683581,0.00092283,87.622,87.584,10.274]
[1772482684084,0.00092283,87.622,87.592,10.273]
[1772482684283,0.00092283,87.622,87.568,3.90900412]
[1772482684688,0.00092283,87.622,87.57,10.276]
[1772482684984,0.00092283,87.622,87.568,3.90900412]
[1772482685184,0.00092283,87.622,87.585,3.90900412]
[1772482686185,0.00092283,87.622,87.586,10.274]
[1772482686988,0.00092283,87.622,87.587,3.90900412]
[1772482687688,0.00092283,87.622,87.568,3.90900412]
[1772482689590,0.00092283,87.622,87.58,10.274]
[1772482690088,0.00092283,87.622,87.568,3.90900412]
[1772482690785,10.27,87.621,87.568,3.90900412]
[1772482690985,3.59840218,87.62,87.549,3.90900412]
[1772482691186,3.59840218,87.619,87.549,3.90900412]
[1772482691789,10.271,87.608,87.549,3.90900412]
[1772482691990,13.86940218,87.608,87.549,3.90900412]
[1772482692487,10.272,87.598,87.549,3.90900412]
[1772482692991,10.274,87.588,87.531,10.28]
[1772482693396,3.59840218,87.597,87.53,3.90900412]
[1772482693583,10.274,87.588,87.53,3.90900412]
[1772482694293,10.274,87.588,87.532,3.90900412]
[1772482694691,3.59840218,87.578,87.513,3.90900412]
[1772482696095,3.59840218,87.599,87.527,3.90900412]
[1772482696494,10.276,87.567,87.518,10.282]
[1772482696890,12.79974975,87.58,87.518,10.282]
[1772482697089,0.00092283,87.622,87.527,3.67251786]
[1772482697090,3.84279441,87.599,87.527,3.67251786]
[1772482697698,3.84279441,87.599,87.53,3.55994209]
[1772482698901,3.6933675,87.619,87.549,3.55994209]
[1772482699601,10.272,87.605,87.551,10.278]
[1772482699892,3.6933675,87.619,87.549,3.55994209]
[1772482700092,10.274,87.583,87.532,13.83994209]
[1772482700394,8.96241186,87.62,87.532,3.55994209]
[1772482700395,3.6933675,87.619,87.532,3.55994209]
[1772482700693,0.00092283,87.622,87.545,3.55994209]
[1772482701297,10.27092283,87.622,87.566,10.276]
[1772482703499,10.27,87.615,87.566,10.276]
[1772482704090,3.6933675,87.619,87.529,3.55994209]
[1772482704290,3.6933675,87.599,87.529,3.55994209]
[1772482704896,3.6933675,87.599,87.5,8.96241186]
[1772482704897,3.6933675,87.599,87.531,3.55994209]
[1772482706397,10.274,87.581,87.534,10.28]
[1772482707099,3.6933675,87.617,87.551,3.55994209]
[1772482707308,3.6933675,87.599,87.527,3.55994209]
[1772482709309,10.274,87.588,87.536,10.28]
[1772482709607,3.6933675,87.599,87.536,10.28]
[1772482709807,10.275,87.572,87.528,10.281]
[1772482710003,10.275,87.572,87.527,3.55994209]
[1772482710209,3.6933675,87.583,87.503,3.55994209]
[1772482710614,3.6933675,87.579,87.511,10.283]
[1772482710904,3.6933675,87.579,87.503,3.55994209]
[1772482711304,10.279,87.542,87.481,3.55994209]
[1772482711508,3.6933675,87.558,87.481,3.55994209]
[1772482713006,3.6933675,87.539,87.461,3.55994209]
[1772482714204,10.281,87.526,87.471,10.287]
[1772482714503,10.281,87.526,87.437,13.99318114]
[1772482714504,3.6933675,87.559,87.472,3.55994209]
[1772482714807,3.6933675,87.559,87.506,10.283]
[1772482715009,3.6933675,87.559,87.507,3.55994209]
[1772482715209,3.6933675,87.589,87.507,3.55994209]
[1772482715406,3.6933675,87.589,87.521,3.55994209]
[1772482716116,10.274,87.588,87.538,10.279]
[1772482716404,191.67447324,87.61,87.521,3.55994209]
[1772482716405,12.64784074,87.61,87.521,3.55994209]
[1772482716605,3.6933675,87.634,87.562,3.55994209]
[1772482718210,3.6933675,87.619,87.543,3.55994209]
[1772482718614,3.6933675,87.619,87.52,8.95447324]
[1772482718615,10.271,87.611,87.552,3.55994209]
[1772482720414,3.6933675,87.619,87.566,10.276]
[1772482721012,10.27,87.617,87.566,10.276]
[1772482722815,3.6933675,87.647,87.572,3.55994209]
[1772482723010,8.95447324,87.66,87.572,3.55994209]
[1772482723407,3.6933675,87.668,87.592,3.55994209]
[1772482723610,8.95447324,87.68,87.592,3.55994209]
[1772482723807,3.6933675,87.679,87.592,3.55994209]
[1772482724214,3.6933675,87.679,87.584,10.55034799]
[1772482724215,3.6933675,87.679,87.618,3.55994209]
[1772482724516,3.6933675,87.703,87.618,3.55994209]
[1772482724711,474.91116768,87.713,87.641,3.55994209]
[1772482724918,124.0,87.76,87.641,3.55994209]
[1772482724919,3.6933675,87.764,87.681,3.55994209]
[1772482725115,3.6933675,87.792,87.701,3.55994209]
[1772482725307,3.6933675,87.776,87.701,3.55994209]
[1772482725509,3.6933675,87.797,87.701,3.55994209]
[1772482726114,10.251,87.784,87.705,3.55994209]
[1772482726618,10.251,87.778,87.705,3.55994209]
[1772482727018,10.251,87.778,87.658,13.99318114]
[1772482727019,3.68728685,87.759,87.683,3.55994209]
[1772482727517,10.256,87.741,87.683,3.55994209]
[1772482727914,3.68728685,87.759,87.683,3.55994209]
[1772482728112,10.257,87.73,87.683,3.55994209]
[1772482728310,10.257,87.73,87.657,3.78644681]
[1772482728516,12.62867051,87.74,87.657,3.78644681]
[1772482728712,10.256,87.739,87.661,3.78644681]
[1772482728914,3.67419727,87.74,87.661,3.78644681]
[1772482729314,8.95447324,87.72,87.661,3.78644681]
[1772482729517,3.67038165,87.728,87.661,3.78644681]
[1772482729717,3.67038165,87.719,87.631,3.78644681]
[1772482730015,8.95447324,87.7,87.631,3.78644681]
[1772482730519,3.67038165,87.719,87.631,3.78644681]
[1772482730922,3.67038165,87.719,87.635,3.78644681]
[1772482732221,10.259,87.715,87.639,3.78644681]
[1772482733526,13.92273699,87.715,87.639,3.78644681]
[1772482734319,8.95447324,87.72,87.642,3.78644681]
[1772482734522,3.66895101,87.719,87.651,3.78644681]
[1772482735526,10.259,87.714,87.651,3.78644681]
[1772482736423,3.67642945,87.706,87.651,3.78644681]
[1772482736623,3.67642945,87.699,87.591,3.78644681]
[1772482736827,8.95447324,87.72,87.567,159.856]
[1772482736828,12.63090269,87.72,87.631,3.78644681]
[1772482737030,8.95447324,87.72,87.631,3.78644681]
[1772482737330,8.95447324,87.72,87.659,3.78644681]
[1772482738019,3.67642945,87.74,87.659,3.78644681]
[1772482738223,3.67642945,87.739,87.659,3.78644681]
[1772482738931,10.257,87.728,87.661,3.78644681]
[1772482739124,3.63829464,87.719,87.631,3.78644681]
[1772482739624,159.44,87.796,87.61,8.95447324]
[1772482739625,3.63829464,87.739,87.651,3.78644681]
[1772482739822,3.63829464,87.739,87.611,20.542]
[1772482739823,3.63829464,87.719,87.611,3.78644681]
[1772482740220,10.26,87.706,87.649,10.266]
[1772482740426,3.63829464,87.719,87.65,3.78644681]
[1772482741732,8.95447324,87.7,87.631,3.78644681]
[1772482742228,3.63133897,87.699,87.631,3.78644681]
[1772482742428,12.58581221,87.68,87.61,3.78644681]
[1772482743233,10.262,87.685,87.628,10.269]
[1772482745331,10.262,87.685,87.6,8.95447324]
[1772482745332,3.62259485,87.699,87.62,3.78644681]
[1772482745727,8.95447324,87.72,87.621,3.78644681]
[1772482746735,12.57786738,87.72,87.621,3.78644681]
[1772482747133,3.62339414,87.719,87.645,10.267]
[1772482747334,3.62339414,87.699,87.621,3.78644681]
[1772482748130,10.262,87.69,87.631,14.05444681]
[1772482748333,10.262,87.69,87.632,3.78644681]
[1772482748636,10.264,87.668,87.615,10.27]
[1772482749236,10.263,87.677,87.615,10.27]
[1772482749432,3.62392253,87.71,87.624,3.78644681]
[1772482749632,3.62392253,87.755,87.631,3.78644681]
[1772482749841,3.62392253,87.755,87.661,3.78644681]
[1772482750541,10.258,87.722,87.664,10.265]
[1772482750841,3.58027663,87.735,87.664,10.265]
[1772482751035,10.258,87.724,87.672,10.264]
[1772482751234,3.58027663,87.759,87.673,3.78644681]
[1772482751434,3.58027663,87.739,87.641,3.78644681]
[1772482751636,3.58027663,87.739,87.66,3.78644681]
[1772482752237,10.257,87.726,87.66,3.78644681]
[1772482752541,3.58027663,87.739,87.661,3.78644681]
[1772482752742,10.256,87.738,87.687,10.262]
[1772482752942,3.58027663,87.739,87.661,3.78644681]
[1772482753242,8.95447324,87.78,87.66,8.95447324]
[1772482753243,3.52649091,87.779,87.681,3.78644681]
[1772482753741,10.254,87.757,87.703,10.26]
[1772482754639,10.254,87.757,87.681,3.78644681]
[1772482754640,10.254,87.757,87.694,10.261]
[1772482755138,10.255,87.748,87.694,10.261]
[1772482755337,3.57324301,87.76,87.683,10.262]
[1772482755948,3.57728372,87.759,87.683,10.262]
[1772482756145,3.57728372,87.739,87.674,10.263]
[1772482756340,3.57728372,87.719,87.638,3.56476243]
[1772482756539,3.57728372,87.699,87.619,3.56476243]
[1772482756739,3.59320815,87.679,87.591,3.56476243]
[1772482757336,3.59320815,87.659,87.591,3.56476243]
[1772482758539,3.59320815,87.659,87.569,3.73088251]
[1772482759336,10.266,87.651,87.569,3.73088251]
[1772482759536,3.59320815,87.659,87.569,3.73088251]
[1772482759743,10.268,87.638,87.579,10.275]
[1772482760142,3.59320815,87.659,87.569,3.73088251]
[1772482760546,10.264,87.672,87.609,3.73088251]
[1772482760742,3.55550328,87.679,87.59,8.95447324]
[1772482760947,3.55550328,87.679,87.58,3.73088251]
[1772482760948,8.95447324,87.64,87.555,10.44674381]
[1772482761240,3.55550328,87.639,87.556,3.73088251]
[1772482762437,3.55550328,87.619,87.536,3.73088251]
[1772482762849,10.27,87.615,87.549,10.278]
[1772482763444,3.55550328,87.619,87.536,3.73088251]
[1772482763843,10.271,87.609,87.55,10.278]
[1772482764046,10.271,87.609,87.536,3.73088251]
[1772482764446,3.55550328,87.619,87.536,3.73088251]
[1772482764842,2.92661118,87.617,87.536,3.73088251]
[1772482765351,13.19761118,87.609,87.539,3.73088251]
[1772482765945,10.272,87.599,87.539,3.73088251]
[1772482766146,2.92661118,87.609,87.511,3.73088251]
[1772482766451,2.92661118,87.57,87.487,3.73088251]
[1772482766652,2.82867649,87.559,87.487,3.73088251]
[1772482766853,2.82867649,87.545,87.48,10.286]
[1772482767048,2.82867649,87.545,87.468,3.73088251]
[1772482767246,2.82867649,87.559,87.471,3.73088251]
[1772482767455,2.82867649,87.546,87.471,3.73088251]
[1772482767649,8.95447324,87.56,87.471,3.73088251]
[1772482767953,8.95447324,87.56,87.481,10.286]
[1772482767954,10.278,87.547,87.481,10.286]
[1772482770649,10.278,87.547,87.481,14.01688251]
[1772482771152,10.278,87.547,87.49,10.285]
[1772482771549,12.95778581,87.528,87.468,10.288]
[1772482771754,2.67678581,87.527,87.46,3.73088251]
[1772482772155,10.281,87.523,87.461,10.288]
[1772482772456,2.67678581,87.527,87.46,3.73088251]
[1772482773156,10.282,87.514,87.46,3.73088251]
[1772482773454,2.67678581,87.527,87.46,3.73088251]
[1772482773656,10.28,87.534,87.471,3.73088251]
[1772482773953,8.95447324,87.56,87.471,3.73088251]
[1772482774355,2.68104706,87.558,87.49,10.285]
[1772482774657,2.68104706,87.558,87.471,3.73088251]
[1772482775152,2.64858045,87.542,87.48,10.286]
[1772482776356,10.279,87.538,87.48,10.286]
[1772482778753,2.64858045,87.542,87.495,10.284]
[1772482778954,2.63880756,87.539,87.461,3.73088251]
[1772482779154,10.284,87.496,87.421,3.73088251]
[1772482779458,2.63880756,87.495,87.421,3.73088251]
[1772482780253,8.95257637,87.5,87.432,3.73088251]
[1772482780456,2.63880756,87.515,87.432,3.73088251]
[1772482781355,2.54695771,87.534,87.451,3.73088251]
[1772482782359,10.282,87.514,87.458,10.289]
[1772482783856,2.54695771,87.534,87.466,3.73088251]
[1772482784753,10.28,87.532,87.466,3.73088251]
[1772482785458,19.23157637,87.54,87.466,3.73088251]
[1772482785658,2.5460363,87.555,87.466,3.73088251]
[1772482787359,10.279,87.542,87.466,3.73088251]
[1772482787560,2.5460363,87.555,87.466,3.73088251]
[1772482787763,2.5460363,87.555,87.508,10.283]
[1772482788362,10.277,87.562,87.508,10.283]
[1772482788755,2.55395985,87.575,87.48,8.95257637]
[1772482788957,2.55395985,87.575,87.527,10.281]
[1772482789158,2.55395985,87.575,87.509,3.54780531]
[1772482789362,10.275,87.573,87.525,10.281]
[1772482790266,2.56232744,87.564,87.486,3.54780531]
[1772482790461,8.95257637,87.56,87.486,3.54780531]
[1772482790665,2.56232744,87.559,87.486,3.54780531]
[1772482790866,2.56232744,87.559,87.494,10.285]
[1772482790867,10.279,87.543,87.494,10.285]
[1772482791367,10.28,87.536,87.486,13.83280531]
[1772482793164,2.56379576,87.539,87.434,3.54780531]
[1772482793363,11.48,87.558,87.434,3.54780531]
[1772482793364,2.56379576,87.519,87.434,3.54780531]
[1772482793866,10.284,87.503,87.434,3.54780531]
[1772482794068,2.56379576,87.519,87.434,3.54780531]
[1772482794363,2.56379576,87.538,87.499,10.284]
[1772482794568,2.56379576,87.559,87.48,3.54780531]
[1772482795068,2.56379576,87.539,87.451,3.54780531]
[1772482796867,10.281,87.523,87.477,10.286]
[1772482797066,2.56379576,87.539,87.47,3.54780531]
[1772482797370,12.84279576,87.539,87.492,10.285]
[1772482797572,2.56379576,87.539,87.47,3.54780531]
[1772482798569,10.281,87.525,87.47,3.54780531]
[1772482798768,2.56379576,87.539,87.47,3.54780531]
[1772482799568,10.28,87.533,87.483,3.54780531]
[1772482799771,2.56439,87.559,87.483,3.54780531]
[1772482800267,159.752,87.625,87.431,170.57811409]
[1772482800268,8.95257637,87.58,87.491,3.54780531]
[1772482800471,2.56439,87.579,87.491,3.54780531]
[1772482800666,2.56439,87.579,87.51,3.54780531]
[1772482800872,2.56439,87.598,87.51,3.54780531]